lending/lending_fUSD_20240809
["ID","MTS","AMOUNT","RATE_DAILY","PERIOD"]
[334570389,1723241451094,-981.33452797,0.0001989,2]
[334570390,1723241451109,-202.60343091,0.00019899,2]
[334570391,1723241451124,-11550.09416213,0.000199,2]
[334570392,1723241451133,-11550.09416212,0.000199,2]
[334570393,1723241451143,-11550.09416212,0.000199,2]
[334570394,1723241451153,-192.42893812,0.000199,2]
[334570395,1723241451162,-600.0,0.00019903,2]
[334570396,1723241451171,-958.14665341,0.00019908,2]
[334570397,1723241451181,-600.0,0.00019909,2]
[334570398,1723241451191,-600.0,0.00019913,2]
[334570399,1723241451200,-791.10675434,0.00019955,4]
[334570400,1723241451210,-196.83442498,0.00019955,4]
[334570401,1723241451220,-930.41626387,0.00019958,2]
[334570402,1723241451229,-600.0,0.0001997,2]
[334570403,1723241451238,-200.0,0.00019973,2]
[334570404,1723241451248,-150.0,0.00019973,2]
[334570405,1723241451257,-200.0,0.00019973,2]
[334570406,1723241451267,-1000.0,0.00019973,2]
[334570407,1723241451277,-1000.0,0.00019991,2]
[334570408,1723241451286,-150.0,0.00019994,4]
[334570409,1723241451295,-1011.0,0.00019995,2]
[334570410,1723241451305,-235.76,0.00019998,2]
[334570411,1723241451314,-795.96,0.00019998,2]
[334570412,1723241451323,-18338.42647299,0.00019999,2]
[334570413,1723241451333,-107176.17963802,0.00019999,2]
[334570414,1723241451343,-68559.53789565,0.00019999,2]
[334570415,1723241451354,-6293.07141738,0.0002,2]
[334570416,1723241451364,-155.0,0.0002,2]
[334570417,1723241451373,-626.31916302,0.0002,2]
[334570418,1723241451383,-3200.0,0.0002,2]
[334570419,1723241451392,-150.0,0.0002,2]
[334570420,1723241451401,-4528.95825551,0.0002,2]
[334570421,1723241451411,-17834.52653149,0.0002,2]
[334570422,1723241451420,-156.40457217,0.0002,2]
[334570423,1723241451430,-1284.25826898,0.0002,2]
[334570424,1723241451439,-155.0,0.0002,2]
[334570425,1723241451449,-155.0,0.0002,2]
[334570426,1723241451458,-868.8876107,0.0002,2]
[334570427,1723241451467,-155.0,0.0002,2]
[334570428,1723241451478,-510.44289319,0.0002,2]
[334570429,1723241451489,-60000.0,0.0002,2]
[334570430,1723241451499,-989.0,0.0002,2]
[334570431,1723241451509,-1000.0,0.0002,5]
[334570432,1723241451519,-199.45699993,0.0002,2]
[334570433,1723241451528,-1486.30085833,0.0002,2]
[334570434,1723241451538,-192.0,0.0002,2]
[334570435,1723241451547,-388.63698222,0.0002,2]
[334570436,1723241451558,-3912.52957196,0.0002,2]
[334570437,1723241451567,-1770.79966391,0.0002,2]
[334570438,1723241451577,-989.0,0.0002,2]
[334570439,1723241451586,-171.0,0.0002,2]
[334570440,1723241451596,-859.0,0.0002,2]
[334570441,1723241451612,-859.0,0.0002,2]
[334570442,1723241451653,-196.0,0.0002,2]
[334570443,1723241451663,-7000.0,0.0002,4]
[334570444,1723241451672,-293.89508541,0.0002,2]
[334570445,1723241451681,-3775.34637271,0.0002,2]
[334570446,1723241451690,-3950.0,0.0002,2]
[334570447,1723241451699,-2584.86618988,0.0002,2]
[334570448,1723241451709,-2256.0,0.0002,2]
[334570449,1723241451718,-218.10372429,0.0002,2]
[334570450,1723241451728,-800.0,0.0002,2]
[334570451,1723241451738,-2000.0,0.0002,2]
[334570452,1723241451748,-2000.0,0.0002,2]
[334570453,1723241451757,-2000.0,0.0002,2]
[334570454,1723241451767,-2000.0,0.0002,2]
[334570455,1723241451776,-500.0,0.0002,2]
[334570456,1723241451786,-275.5,0.0002,2]
[334570457,1723241451795,-1000.0,0.0002,2]
[334570458,1723241451805,-150.0,0.0002,2]
[334570459,1723241451814,-194.0,0.0002001,3]
[334570460,1723241451824,-2000.0,0.0002001,2]
[334570461,1723241451833,-2000.0,0.0002001,2]
[334570462,1723241451843,-2000.0,0.0002001,2]
[334570463,1723241451852,-3200.0,0.0002001,2]
[334570464,1723241451861,-150.0,0.00020016,4]
[334570465,1723241451871,-600.0,0.00020017,2]
[334570466,1723241451880,-1800.0,0.00020018,2]
[334570467,1723241451890,-2050.841624,0.0002002,2]
[334570468,1723241451904,-2050.841624,0.0002002,2]
[334570469,1723241451913,-2000.0,0.0002002,2]
[334570470,1723241451922,-1800.0,0.00020028,2]
[334570471,1723241451931,-500.0,0.00020028,2]
[334570472,1723241451941,-600.0,0.00020029,2]
[334570473,1723241451950,-3378.804518,0.0002003,2]
[334570474,1723241451959,-500.0,0.00020046,2]
[334570475,1723241451969,-810.0,0.0002005,2]
[334570476,1723241451978,-500.0,0.00020063,2]
[334570477,1723241451987,-791.10675434,0.00020067,4]
[334570478,1723241451996,-196.83442498,0.00020067,4]
[334570479,1723241452005,-150.0,0.00020067,4]
[334570480,1723241452015,-800.0,0.00020068,2]
[334570481,1723241452023,-3400.0,0.00020087,2]
[334570482,1723241452033,-3200.0,0.00020089,2]
[334570483,1723241452042,-600.0,0.00020092,2]
[334570484,1723241452052,-600.0,0.00020094,2]
[334570485,1723241452062,-600.0,0.00020095,2]
[334570486,1723241452071,-3400.0,0.00020138,2]
[334570487,1723241452081,-3400.0,0.00020157,2]
[334570488,1723241452090,-500.0,0.00020164,2]
[334570489,1723241452101,-152.0,0.00020175,3]
[334570490,1723241452110,-791.10675434,0.00020179,4]
[334570491,1723241452120,-196.83442498,0.00020179,4]
[334570492,1723241452130,-500.0,0.00020179,2]
[334570493,1723241452139,-600.0,0.0002019,2]
[334570494,1723241452149,-150.0,0.00020212,4]
[334570495,1723241452158,-500.0,0.00020227,2]
[334570496,1723241452167,-500.0,0.00020235,2]
[334570497,1723241452177,-150.0,0.00020243,4]
[334570498,1723241452186,-2000.0,0.00020273,2]
[334570499,1723241452196,-3200.0,0.00020289,2]
[334570500,1723241452206,-3400.0,0.0002029,2]
[334570501,1723241452215,-791.10675434,0.00020291,4]
[334570502,1723241452225,-196.83442498,0.00020291,4]
[334570503,1723241452235,-500.0,0.00020303,2]
[334570504,1723241452244,-500.0,0.00020308,2]
[334570505,1723241452253,-500.0,0.0002032,2]
[334570506,1723241452263,-500.0,0.00020363,2]
[334570507,1723241452272,-600.0,0.00020364,2]
[334570508,1723241452281,-150.0,0.00020375,4]
[334570509,1723241452291,-3200.0,0.00020399,2]
[334570510,1723241452300,-500.0,0.00020401,2]
[334570511,1723241452310,-791.10675434,0.00020403,4]
[334570512,1723241452319,-196.83442498,0.00020403,4]
[334570513,1723241452329,-150.0,0.00020429,4]
[334570514,1723241452338,-588.66,0.00020447,2]
[334570515,1723241452348,-156.84,0.00020447,2]
[334570516,1723241452359,-600.0,0.00020451,2]
[334570517,1723241452368,-600.0,0.00020466,2]
[334570518,1723241452377,-150.0,0.00020469,4]
[334570519,1723241452386,-2168.03469988,0.00020473,2]
[334570520,1723241452396,-500.0,0.00020476,2]
[334570521,1723241452405,-791.10675434,0.00020515,4]
[334570522,1723241452414,-196.83442498,0.00020515,4]
[334570523,1723241452424,-500.0,0.00020516,2]
[334570524,1723241452433,-382.71126557,0.00020521,2]
[334570525,1723241452443,-500.0,0.00020527,2]
[334570526,1723241452453,-600.0,0.00020533,2]
[334570527,1723241452462,-600.0,0.00020539,2]
[334570528,1723241452471,-2000.0,0.00020547,2]
[334570529,1723241452481,-172.88,0.00020548,2]
[334570530,1723241452490,-173.0,0.00020548,2]
[334570531,1723241452500,-20132.04,0.00020548,2]
[334570532,1723241452510,-600.0,0.00020573,2]
[334570533,1723241452519,-1800.0,0.00020574,2]
[334570534,1723241452528,-3400.0,0.00020597,2]
[334570535,1723241452538,-2000.0,0.00020616,2]
[334570536,1723241452548,-1700.0,0.00020616,2]
[334570537,1723241452557,-3100.0,0.00020616,2]
[334570538,1723241452567,-3000.0,0.00020616,2]
[334570539,1723241452576,-500.0,0.00020627,2]
[334570540,1723241452586,-791.10675434,0.00020627,4]
[334570541,1723241452595,-196.83442498,0.00020627,4]
[334570542,1723241452606,-150.0,0.00020647,4]
[334570543,1723241452616,-1800.0,0.00020652,2]
[334570544,1723241452625,-3200.0,0.00020656,2]
[334570545,1723241452635,-150.0,0.00020683,4]
[334570546,1723241452644,-150.0,0.00020696,4]
[334570547,1723241452654,-600.0,0.00020705,2]
[334570548,1723241452663,-300.34170008,0.00020706,2]
[334570549,1723241452673,-185.06951542,0.0002073,2]
[334570550,1723241452683,-791.10675434,0.00020739,4]
[334570551,1723241452693,-196.83442498,0.00020739,4]
[334570552,1723241452702,-500.0,0.00020752,2]
[334570553,1723241452712,-1000.0,0.00020772,2]
[334570554,1723241452722,-500.0,0.00020789,2]
[334570555,1723241452732,-600.0,0.00020805,2]
[334570556,1723241452742,-235.76,0.0002082,2]
[334570557,1723241452751,-795.96,0.0002082,2]
[334570558,1723241452761,-3200.0,0.0002082,2]
[334570559,1723241452772,-177.04241578,0.00020821,2]
[334570560,1723241452781,-193.72739513,0.00020821,2]
[334570561,1723241452791,-2000.0,0.00020821,2]
[334570562,1723241452800,-322.76,0.00020821,2]
[334570563,1723241452810,-1800.0,0.00020845,2]
[334570564,1723241452819,-791.10675434,0.00020852,4]
[334570565,1723241452829,-196.83442498,0.00020852,4]
[334570566,1723241452838,-500.0,0.00020858,2]
[334570567,1723241452848,-2717.24014392,0.00020864,2]
[334570568,1723241452862,-150.0,0.00020865,4]
[334570569,1723241452871,-500.0,0.00020871,2]
[334570570,1723241452881,-679.61185523,0.00020886,2]
[334570571,1723241452891,-229.72,0.0002089,30]
[334570572,1723241452904,-600.0,0.0002092,2]
[334570573,1723241452913,-150.0,0.00020922,4]
[334570574,1723241452923,-1800.0,0.00020929,2]
[334570575,1723241452932,-500.0,0.00020937,2]
[334570576,1723241452942,-500.0,0.00020948,2]
[334570577,1723241452951,-791.10675434,0.00020964,4]
[334570578,1723241452961,-196.83442498,0.00020964,4]
[334570579,1723241452970,-500.0,0.00020972,2]
[334570580,1723241452981,-500.0,0.00020982,2]
[334570581,1723241452991,-1210.25239429,0.00020988,2]
[334570582,1723241453000,-500.0,0.00020993,2]
[334570583,1723241453010,-225.69935237,0.00021,2]
[334570584,1723241453019,-265.87,0.00021,2]
[334570585,1723241453028,-646.88280815,0.00021,2]
[334570586,1723241453037,-199.0,0.00021,2]
[334570587,1723241453046,-3400.0,0.00021,2]
[334570588,1723241453055,-275.5,0.00021,2]
[334570589,1723241453064,-500.0,0.00021021,2]
[334570590,1723241453074,-185.70486646,0.00021028,2]
[334570591,1723241453083,-500.0,0.00021043,2]
[334570592,1723241453093,-500.0,0.0002105,2]
[334570593,1723241453105,-500.0,0.00021069,2]
[334570594,1723241453114,-791.10675434,0.00021076,4]
[334570595,1723241453123,-196.83442498,0.00021076,4]
[334570596,1723241453134,-150.0,0.00021082,4]
[334570597,1723241453143,-500.0,0.00021086,2]
[334570598,1723241453153,-2000.0,0.00021095,2]
[334570599,1723241453162,-500.0,0.00021096,2]
[334570600,1723241453171,-500.0,0.00021101,2]
[334570601,1723241453181,-500.0,0.00021116,2]
[334570602,1723241453190,-3200.0,0.00021118,2]
[334570603,1723241453199,-509.62426263,0.00021128,2]
[334570604,1723241453209,-150.0,0.00021149,4]
[334570605,1723241453218,-600.0,0.00021157,2]
[334570606,1723241453228,-500.0,0.00021158,2]
[334570607,1723241453237,-1000.0,0.00021158,2]
[334570608,1723241453247,-800.0,0.00021164,2]
[334570609,1723241453256,-500.0,0.00021177,2]
[334570610,1723241453265,-791.10675434,0.00021188,4]
[334570611,1723241453275,-196.83442498,0.00021188,4]
[334570612,1723241453284,-160.97672045,0.00021199,2]
[334570613,1723241453293,-152.0,0.000212,4]
[334570614,1723241453303,-3200.0,0.00021233,2]
[334570615,1723241453312,-500.0,0.0002125,2]
[334570616,1723241453321,-500.0,0.00021264,2]
[334570617,1723241453330,-303.17237553,0.0002127,3]
[334570618,1723241453340,-3400.0,0.00021273,2]
[334570619,1723241453350,-3400.0,0.00021283,2]
[334570620,1723241453365,-3200.0,0.00021285,2]
[334570621,1723241453374,-600.0,0.00021299,2]
[334570622,1723241453384,-791.10675434,0.000213,4]
[334570623,1723241453394,-196.83442498,0.000213,4]
[334570624,1723241453404,-150.0,0.000213,4]
[334570625,1723241453414,-150.0,0.000213,4]
[334570626,1723241453424,-150.0,0.000213,4]
[334570627,1723241453435,-150.0,0.000213,4]
[334570628,1723241453445,-1800.0,0.00021311,2]
[334570629,1723241453455,-1000.0,0.00021332,2]
[334570630,1723241453465,-400.0,0.00021342,2]
[334570631,1723241453474,-400.0,0.00021342,2]
[334570632,1723241453484,-2000.0,0.00021369,2]
[334570633,1723241453494,-5909.02,0.0002137,2]
[334570634,1723241453504,-592.14,0.0002137,2]
[334570635,1723241453514,-500.0,0.00021372,2]
[334570636,1723241453524,-150.0,0.00021376,4]
[334570637,1723241453533,-5470.26,0.000214,2]
[334570638,1723241453544,-5225.79,0.000214,7]
[334570639,1723241453553,-791.10675434,0.00021412,4]
[334570640,1723241453563,-196.83442498,0.00021412,4]
[334570641,1723241453573,-500.0,0.00021438,2]
[334570642,1723241453582,-391.26,0.0002144,2]
[334570643,1723241453592,-167.10539186,0.00021441,2]
[334570644,1723241453601,-600.0,0.00021463,2]
[334570645,1723241453615,-500.0,0.00021464,2]
[334570646,1723241453625,-819.20995938,0.00021478,2]
[334570647,1723241453635,-500.0,0.00021513,2]
[334570648,1723241453644,-150.0,0.00021518,4]
[334570649,1723241453654,-600.0,0.0002152,2]
[334570650,1723241453664,-791.10675434,0.00021524,4]
[334570651,1723241453674,-196.83442498,0.00021524,4]
[334570652,1723241453684,-500.0,0.00021531,2]
[334570653,1723241453693,-600.0,0.00021561,2]
[334570654,1723241453703,-500.0,0.00021569,2]
[334570655,1723241453713,-600.0,0.00021572,2]
[334570656,1723241453722,-150.0,0.00021602,4]
[334570657,1723241453732,-1800.0,0.00021618,2]
[334570658,1723241453741,-3400.0,0.00021626,2]
[334570659,1723241453751,-500.0,0.00021627,2]
[334570660,1723241453761,-500.0,0.00021634,2]
[334570661,1723241453771,-500.0,0.00021636,2]
[334570662,1723241453780,-791.10675434,0.00021636,4]
[334570663,1723241453790,-196.83442498,0.00021636,4]
[334570664,1723241453800,-2000.0,0.00021643,2]
[334570665,1723241453810,-500.0,0.00021645,2]
[334570666,1723241453821,-500.0,0.00021654,2]
[334570667,1723241453830,-1995.29092,0.0002166,2]
[334570668,1723241453840,-500.0,0.00021662,2]
[334570669,1723241453850,-500.0,0.00021671,2]
[334570670,1723241453864,-500.0,0.0002168,2]
[334570671,1723241453874,-500.0,0.00021689,2]
[334570672,1723241453883,-600.0,0.00021696,2]
[334570673,1723241453894,-500.0,0.00021698,2]
[334570674,1723241453906,-500.0,0.00021706,2]
[334570675,1723241453915,-2000.0,0.00021712,2]
[334570676,1723241453925,-1700.0,0.00021712,2]
[334570677,1723241453934,-3100.0,0.00021712,2]
[334570678,1723241453944,-3000.0,0.00021712,2]
[334570679,1723241453953,-500.0,0.00021712,2]
[334570680,1723241453964,-500.0,0.00021715,2]
[334570681,1723241453978,-500.0,0.00021724,2]
[334570682,1723241453994,-500.0,0.00021733,2]
[334570683,1723241454006,-150.0,0.00021735,4]
[334570684,1723241454016,-500.0,0.00021742,2]
[334570685,1723241454027,-791.10675434,0.00021748,4]
[334570686,1723241454037,-196.83442498,0.00021748,4]
[334570687,1723241454047,-500.0,0.0002175,2]
[334570688,1723241454057,-500.0,0.00021759,2]
[334570689,1723241454067,-500.0,0.00021768,2]
[334570690,1723241454077,-500.0,0.00021777,2]
[334570691,1723241454087,-500.0,0.00021786,2]
[334570692,1723241454098,-500.0,0.00021794,2]
[334570693,1723241454111,-1166.94953749,0.00021795,5]
[334570694,1723241454121,-600.0,0.00021796,2]
[334570695,1723241454131,-500.0,0.00021803,2]
[334570696,1723241454141,-500.0,0.00021812,2]
[334570697,1723241454150,-500.0,0.00021821,2]
[334570698,1723241454159,-150.0,0.00021829,4]
[334570699,1723241454169,-500.0,0.0002183,2]
[334570700,1723241454178,-500.0,0.00021838,2]
[334570701,1723241454188,-500.0,0.00021847,2]
[334570702,1723241454197,-999.001,0.0002185,2]
[334570703,1723241454206,-3400.0,0.00021851,2]
[334570704,1723241454216,-500.0,0.00021856,2]
[334570705,1723241454225,-600.0,0.0002186,2]
[334570706,1723241454234,-791.10675434,0.00021861,4]
[334570707,1723241454244,-196.83442498,0.00021861,4]
[334570708,1723241454254,-500.0,0.00021862,2]
[334570709,1723241454264,-500.0,0.00021865,2]
[334570710,1723241454274,-50000.0,0.0002187,4]
[334570711,1723241454284,-500.0,0.00021874,2]
[334570712,1723241454398,-500.0,0.00021882,2]
[334570713,1723241454408,-500.0,0.00021891,2]
[334570714,1723241454418,-500.0,0.000219,2]
[334570715,1723241454427,-5000.0,0.000219,2]
[334570716,1723241454437,-2000.0,0.000219,2]
[334570717,1723241454447,-500.0,0.000219,2]
[334570718,1723241454456,-1200.0,0.000219,2]
[334570719,1723241454466,-650.0,0.000219,2]
[334570720,1723241454475,-500.0,0.00021906,2]
[334570721,1723241454485,-150.0,0.00021917,4]
[334570722,1723241454494,-1911.64334489,0.00021917,2]
[334570723,1723241454504,-1329.19,0.00021918,2]
[334570724,1723241454514,-1479.95,0.00021918,2]
[334570725,1723241454523,-150.0,0.00021918,2]
[334570726,1723241454533,-150.0,0.00021918,2]
[334570727,1723241454542,-150.0,0.00021918,2]
[334570728,1723241454551,-150.0,0.00021918,2]
[334570729,1723241454561,-150.0,0.00021918,2]
[334570730,1723241454570,-150.0,0.00021918,2]
[334570731,1723241454580,-150.0,0.00021918,2]
[334570732,1723241454589,-150.0,0.00021918,2]
[334570733,1723241454598,-150.0,0.00021918,2]
[334570734,1723241454611,-150.0,0.00021918,2]
[334570735,1723241454621,-150.0,0.00021918,2]
[334570736,1723241454630,-150.0,0.00021918,2]
[334570737,1723241454640,-150.0,0.00021918,2]
[334570738,1723241454649,-150.0,0.00021918,2]
[334570739,1723241454658,-176.50561346,0.00021918,2]
[334570740,1723241454667,-293.78519782,0.00021934,2]
[334570741,1723241454677,-3200.0,0.00021935,2]
[334570742,1723241454686,-500.0,0.00021951,2]
[334570743,1723241454696,-150.0,0.00021953,4]
[334570744,1723241454705,-500.0,0.00021954,2]
[334570745,1723241454715,-791.10675434,0.00021973,4]
[334570746,1723241454725,-196.83442498,0.00021973,4]
[334570747,1723241454734,-500.0,0.00021978,2]
[334570748,1723241454743,-3200.0,0.00021979,2]
[334570749,1723241454753,-600.0,0.00021985,2]
[334570750,1723241454762,-600.0,0.00021993,2]
[334570751,1723241454772,-371.98698346,0.00022,2]
[334570752,1723241454781,-199.0,0.00022,2]
[334570753,1723241454791,-242.07644878,0.00022,2]
[334570754,1723241454801,-1069.24907524,0.00022,2]
[334570755,1723241454810,-850.0,0.00022,2]
[334570756,1723241454819,-424.178287,0.00022,2]
[334570757,1723241454829,-150.0,0.00022055,4]
[334570758,1723241454839,-791.10675434,0.00022085,4]
[334570759,1723241454848,-196.83442498,0.00022085,4]
[334570760,1723241454861,-500.0,0.00022086,2]
[334570761,1723241454872,-3200.0,0.00022093,2]
[334570762,1723241454881,-227.04094966,0.0002211,2]
[334570763,1723241454892,-600.0,0.00022112,2]
[334570764,1723241454907,-1800.0,0.00022121,2]
[334570765,1723241454916,-507.26587804,0.00022156,2]
[334570766,1723241454926,-1800.0,0.00022161,2]
[334570767,1723241454935,-150.0,0.00022171,4]
[334570768,1723241454945,-1000.0,0.00022171,2]
[334570769,1723241454955,-150.9,0.00022174,2]
[334570770,1723241454964,-500.0,0.00022191,2]
[334570771,1723241454974,-791.10675434,0.00022197,4]
[334570772,1723241454984,-196.83442498,0.00022197,4]
[334570773,1723241454993,-2717.24014392,0.0002221,2]
[334570774,1723241455003,-3200.0,0.0002221,2]
[334570775,1723241455013,-150.0,0.00022225,4]
[334570776,1723241455023,-152.0,0.00022225,5]
[334570777,1723241455032,-800.0,0.0002226,2]
[334570778,1723241455042,-150.0,0.00022282,4]
[334570779,1723241455052,-3400.0,0.00022307,2]
[334570780,1723241455061,-791.10675434,0.00022309,4]
[334570781,1723241455071,-196.83442498,0.00022309,4]
[334570782,1723241455080,-600.0,0.00022338,2]
[334570783,1723241455091,-600.0,0.0002236,2]
[334570784,1723241455101,-1000.0,0.0002238,2]
[334570785,1723241455113,-150.0,0.00022388,4]
[334570786,1723241455123,-791.10675434,0.00022421,4]
[334570787,1723241455132,-196.83442498,0.00022421,4]
[334570788,1723241455142,-500.0,0.00022426,2]
[334570789,1723241455151,-1000.0,0.00022426,2]
[334570790,1723241455161,-500.37875848,0.0002243,2]
[334570791,1723241455171,-3200.0,0.00022449,2]
[334570792,1723241455180,-600.0,0.00022451,2]
[334570793,1723241455189,-500.0,0.00022458,2]
[334570794,1723241455198,-500.0,0.00022465,2]
[334570795,1723241455207,-500.0,0.00022465,2]
[334570796,1723241455216,-500.0,0.00022465,2]
[334570797,1723241455226,-500.0,0.00022465,2]
[334570798,1723241455235,-500.0,0.00022465,2]
[334570799,1723241455245,-500.0,0.00022465,2]
[334570800,1723241455254,-336.11637105,0.00022465,2]
[334570801,1723241455263,-1000.0,0.00022466,2]
[334570802,1723241455273,-500.0,0.00022486,2]
[334570803,1723241455282,-150.0,0.00022495,2]
[334570804,1723241455291,-150.0,0.00022508,4]
[334570805,1723241455301,-600.0,0.00022527,2]
[334570806,1723241455310,-791.10675434,0.00022533,4]
[334570807,1723241455319,-196.83442498,0.00022533,4]
[334570808,1723241455329,-150.0,0.00022533,4]
[334570809,1723241455338,-500.0,0.0002254,2]
[334570810,1723241455348,-16193.27,0.00022562,2]
[334570811,1723241455361,-1108.44,0.00022562,2]
[334570812,1723241455371,-529.08,0.00022562,2]
[334570813,1723241455380,-3655.79,0.00022562,2]
[334570814,1723241455390,-205.46337221,0.00022577,2]
[334570815,1723241455400,-235.76,0.0002258,5]
[334570816,1723241455409,-795.96,0.0002258,5]
[334570817,1723241455419,-500.0,0.00022588,2]
[334570818,1723241455429,-1000.0,0.00022594,2]
[334570819,1723241455440,-186.5,0.00022603,2]
[334570820,1723241455451,-150.0,0.00022606,4]
[334570821,1723241455460,-791.10675434,0.00022645,4]
[334570822,1723241455470,-196.83442498,0.00022645,4]
[334570823,1723241455482,-1800.0,0.00022678,2]
[334570824,1723241455494,-2168.03469987,0.00022687,2]
[334570825,1723241455506,-500.0,0.00022689,2]
[334570826,1723241455515,-223.0,0.0002269,2]
[334570827,1723241455526,-223.0,0.0002269,2]
[334570828,1723241455536,-224.0,0.0002269,2]
[334570829,1723241455546,-5470.26,0.000227,7]
[334570830,1723241455556,-151.0,0.000227,7]
[334570831,1723241455566,-279.16483387,0.000227,2]
[334570832,1723241455575,-200.0,0.000227,2]
[334570833,1723241455585,-797.29664355,0.000227,2]
[334570834,1723241455594,-150.0,0.00022735,4]
[334570835,1723241455603,-600.0,0.00022747,2]
[334570836,1723241455615,-791.10675434,0.00022758,4]
[334570837,1723241455624,-196.83442498,0.00022758,4]
[334570838,1723241455633,-300.0,0.00022772,2]
[334570839,1723241455643,-150.0,0.00022772,2]
[334570840,1723241455653,-2000.0,0.00022808,2]
[334570841,1723241455662,-1700.0,0.00022808,2]
[334570842,1723241455671,-3100.0,0.00022808,2]
[334570843,1723241455680,-3000.0,0.00022808,2]
[334570844,1723241455690,-151.0,0.00022808,7]
[334570845,1723241455699,-151.0,0.00022808,7]
[334570846,1723241455709,-600.0,0.00022822,2]
[334570847,1723241455718,-150.0,0.00022824,4]
[334570848,1723241455728,-500.0,0.00022837,2]
[334570849,1723241455737,-500.0,0.00022838,2]
[334570850,1723241455746,-150.10767656,0.0002286,2]
[334570851,1723241455755,-500.0,0.00022862,2]
[334570852,1723241455765,-791.10675434,0.0002287,4]
[334570853,1723241455774,-196.83442498,0.0002287,4]
[334570854,1723241455783,-500.0,0.00022896,2]
[334570855,1723241455792,-151.0,0.00022905,7]
[334570856,1723241455802,-500.0,0.00022923,2]
[334570857,1723241455811,-500.0,0.00022936,2]
[334570858,1723241455820,-600.0,0.00022953,2]
[334570859,1723241455829,-150.0,0.00022961,4]
[334570860,1723241455838,-185.70486645,0.00022964,2]
[334570861,1723241455847,-791.10675434,0.00022982,4]
[334570862,1723241455858,-196.83442498,0.00022982,4]
[334570863,1723241455867,-500.0,0.00022992,2]
[334570864,1723241455876,-554.99379221,0.00022994,2]
[334570865,1723241455886,-199.0,0.00023,2]
[334570866,1723241455896,-320.0,0.00023,10]
[334570867,1723241455907,-2256.22184056,0.00023,2]
[334570868,1723241455916,-200.0,0.00023,2]
[334570869,1723241455925,-241.94,0.00023,2]
[334570870,1723241455934,-241.94,0.00023,2]
[334570871,1723241455943,-241.94,0.00023,2]
[334570872,1723241455953,-241.94,0.00023,2]
[334570873,1723241455962,-241.94,0.00023,2]
[334570874,1723241455971,-241.94,0.00023,2]
[334570875,1723241455981,-241.94,0.00023,2]
[334570876,1723241455991,-241.94,0.00023,2]
[334570877,1723241456000,-241.94,0.00023,2]
[334570878,1723241456009,-241.94,0.00023,2]
[334570879,1723241456018,-241.94,0.00023,2]
[334570880,1723241456027,-241.94,0.00023,2]
[334570881,1723241456036,-241.94,0.00023,2]
[334570882,1723241456046,-241.94,0.00023,2]
[334570883,1723241456055,-241.94,0.00023,2]
[334570884,1723241456065,-173.0,0.00023,2]
[334570885,1723241456075,-500.0,0.0002301,2]
[334570886,1723241456084,-150.0,0.00023041,4]
[334570887,1723241456093,-600.0,0.00023061,2]
[334570888,1723241456102,-150.0,0.00023071,2]